Cogmind - Beta 11.1 @@@ ROGUE MODE // 2022.11.14 @ 12:26:20 Player: darki Result: Destroyed by P-80 Master with Gamma Rifle Performance ------------- Evolutions (7) 3500 Regions Visited (17) 3400 Robots Destroyed (32) 160 Value Destroyed (1603) 1603 Prototype IDs (28) 560 Alien Tech Used (0) 0 Bonus (2600) 2600 TOTAL SCORE: 11823 Bonus ------- Entered Garrisons 800 Used RIF Installer 1000 Entered DSFs 500 Aligned with FarCom 300 Cogmind --------- Core Integrity 0/1300 Matter 210/300 Energy 68/100 System Corruption 8% Temperature Cool (0) Movement Flying (42) Location -3/Research Parts ------- > --- POWER (3) -------- (None) > --- PROPULSION (10) -- Impulse Thruster Array Impulse Thruster Array > --- UTILITY (6) ------ Advanced Signal Interpreter Improved Utility Shielding Experimental Thermal Shield Advanced Hacking Suite Relay Coupler [Sentry] (22) > --- WEAPON (2) ------- AWS/Gauss > --- INVENTORY (5) ---- Light Antimatter Reactor Particle Reactor Stasis Canceller Improved Recalibrator Heavy Proton Missile Launcher Peak State ------------ > --- POWER ------------ Light Antimatter Reactor > --- PROPULSION ------- Impulse Thruster Array Impulse Thruster Array > --- UTILITY ---------- Advanced Signal Interpreter Improved Utility Shielding Experimental Thermal Shield Advanced Hacking Suite Relay Coupler [Sentry] Improved Recalibrator > --- WEAPON ----------- AWS/Gauss > --- INVENTORY -------- Particle Reactor Stasis Canceller Heavy Proton Missile Launcher [Rating: 90] Favorites ----------- Power Ion Engine Engine Ion Engine Power Core Micro Nuclear Core Reactor Light Antimatter Reactor Propulsion VTOL Module Treads Light Treads Leg Aluminum Leg Hover Unit Gravmag System Flight Unit VTOL Module Utility Structural Scanner Device Structural Scanner Storage Small Storage Unit Processor Advanced Signal Interpreter Hackware Relay Coupler [Sentry] Protection Improved Medium Armor Plating Weapon AWS/Gauss Energy Gun Small Laser Ballistic Gun AWS/Gauss Ballistic Cannon Magnetic Acceleration Cannon Launcher Heavy Proton Missile Launcher Slashing Weapon Blade Saw Build | -11 -10 -10 -10 -9 -8 -7 -7 -6 -5 -5 -4 -4 -4 -4 -3 -3 -3 ------- Run | Scr Mat Min Exi Min Mat Fac DSF Fac Fac Gar Fac Gar Fac Gar Res Gar Res Slots Evolved 14 | . . . . . 4 2 . 2 2 . 2 . . . 2 . . Power 2 | . . . . . . 1 . . . . 1 . . . . . . Propulsion 8 | . . . . . 4 1 . 1 2 . . . . . . . . Utility 4 | . . . . . . . . 1 . . 1 . . . 2 . . Weapon . | . . . . . . . . . . . . . . . . . . Parts Attached 57 | . . 3 1 . 16 3 . 6 2 . . . 3 2 . 3 18 Power 8 | . . . . . 1 2 . 1 . . . . 1 . . . 3 Engine 2 | . . . . . 1 1 . . . . . . . . . . . Core 3 | . . . . . . 1 . 1 . . . . . . . . 1 Reactor 3 | . . . . . . . . . . . . . 1 . . . 2 Propulsion 19 | . . 2 . . 10 1 . 1 2 . . . . . . . 3 Treads 2 | . . 2 . . . . . . . . . . . . . . . Leg . | . . . . . . . . . . . . . . . . . . Wheel . | . . . . . . . . . . . . . . . . . . Hover 4 | . . . . . 4 . . . . . . . . . . . . Flight 13 | . . . . . 6 1 . 1 2 . . . . . . . 3 Utility 19 | . . . . . 5 . . 2 . . . . 1 1 . 2 8 Device 9 | . . . . . 3 . . 2 . . . . . . . . 4 Storage . | . . . . . . . . . . . . . . . . . . Processor 2 | . . . . . . . . . . . . . 1 . . . 1 Hackware 5 | . . . . . . . . . . . . . . 1 . 2 2 Protection 3 | . . . . . 2 . . . . . . . . . . . 1 Artifact . | . . . . . . . . . . . . . . . . . . Weapon 11 | . . 1 1 . . . . 2 . . . . 1 1 . 1 4 Energy Gun . | . . . . . . . . . . . . . . . . . . Energy Cannon . | . . . . . . . . . . . . . . . . . . Ballistic Gun 5 | . . 1 1 . . . . . . . . . 1 . . 1 1 Ballistic Cannon 3 | . . . . . . . . 1 . . . . . 1 . . 1 Launcher 2 | . . . . . . . . . . . . . . . . . 2 Special Weapon . | . . . . . . . . . . . . . . . . . . Impact Weapon . | . . . . . . . . . . . . . . . . . . Slashing Weapon 1 | . . . . . . . . 1 . . . . . . . . . Piercing Weapon . | . . . . . . . . . . . . . . . . . . Special Melee Weapon . | . . . . . . . . . . . . . . . . . . Unidentified Prototypes 3 | . . . . . . . . . . . . . . . . . 3 Parts Lost 22 | . . 2 . . . . . . . . . . 1 1 . 13 5 Power 2 | . . . . . . . . . . . . . . . . 1 1 Propulsion 10 | . . . . . . . . . . . . . . 1 . 9 . Utility 8 | . . . . . . . . . . . . . 1 . . 3 4 Weapon 2 | . . 2 . . . . . . . . . . . . . . . Highest Loss Streak 13 | . . 1 . . . . . . . . . . 1 1 . 13 3 To Critical Strikes . | . . . . . . . . . . . . . . . . . . Average Slot Usage (%) 70 | . 85 81 70 71 69 92 92 92 94 94 84 84 81 82 76 64 25 Engine 6 | . 14 14 14 14 9 8 7 1 . . . . . . . . . Core 3 | . . . . . . 5 7 11 11 11 10 10 10 10 9 7 . Treads 8 | . . 12 28 28 6 . . . . . . . . . . . . Leg 2 | . 28 15 . . . . . . . . . . . . . . . Flight 21 | . . . . . 27 53 53 53 58 58 52 52 52 48 42 31 2 Device 7 | . . . . . 8 15 15 19 17 17 15 15 11 10 9 8 4 Storage 5 | . 14 14 14 14 2 . . . . . . . . . . . . Processor 1 | . . . . . . . . . . . . . . 5 4 4 6 Hackware 1 | . . . . . . . . . . . . . . 2 4 6 6 Energy Gun 1 | . 14 10 . . . . . . . . . . . . . . . Ballistic Gun 6 | . 14 13 13 14 9 7 7 1 . . . . . . . . . Ballistic Cannon 1 | . . . . . . . . . 5 5 5 5 5 5 4 3 . Naked Turns . | . . . . . . . . . . . . . . . . . . Heaviest Build 30 | 13 13 13 20 20 29 27 27 30 28 28 28 28 28 28 26 26 27 Greatest Support 45 | 20 20 40 40 40 40 30 30 31 45 45 45 45 45 35 35 40 32 Greatest Overweight (x) 7 | . . . . . 7 . . . . . . . . . . 1 2 Average Overweight (x) . | . . . . . . . . . . . . . . . . . . Largest Inventory Capacity 8 | . 8 8 8 8 8 5 5 5 5 5 5 5 5 5 5 5 5 Average Capacity 6 | . 8 8 8 8 5 5 5 5 5 5 5 5 5 5 5 5 5 Most Carried 7 | . 6 6 7 5 5 4 5 5 4 3 3 3 4 3 3 5 5 Average Carried 4 | . 6 5 6 5 4 3 4 4 2 3 3 3 3 2 3 3 4 Final Capacity 8 | 8 8 8 8 8 5 5 5 5 5 5 5 5 5 5 5 5 5 Final Carried 6 | 6 6 5 5 5 5 4 5 5 3 3 3 3 2 3 3 5 5 Class Distribution -------------------- 52% | Mutant 43% | Sprinter 4% | Scout Dominant Class ---------------- Mutant | -10/Materials Mutant | -10/Mines Mutant | -10/Exiles Mutant | -9/Mines Sprinter | -8/Materials Sprinter | -7/Factory Sprinter | -7/DSF Sprinter | -6/Factory Sprinter | -5/Factory Sprinter | -5/Garrison Sprinter | -4/Factory Sprinter | -4/Garrison Sprinter | -4/Factory Sprinter | -4/Garrison Sprinter | -3/Research Sprinter | -3/Garrison Mutant | -3/Research Resources | -11 -10 -10 -10 -9 -8 -7 -7 -6 -5 -5 -4 -4 -4 -4 -3 -3 -3 ----------- Run | Scr Mat Min Exi Min Mat Fac DSF Fac Fac Gar Fac Gar Fac Gar Res Gar Res Matter Collected 836 | 200 . 36 . 13 150 . 40 15 91 . . . . . . 117 174 Remotely . | . . . . . . . . . . . . . . . . . . Salvage Created 1686 | . . 95 . 320 391 . 231 . 85 . . . . . . . 564 Parts 62 | . . 2 . 9 15 . 14 . 3 . . . . . . . 19 Haulers Intercepted 2 | . . . . . . . . . 1 . . . . . . . 1 Recyclers Shooed 3 | . . . . 1 1 . . . . . . . . . . . 1 Parts Field Recycled . | . . . . . . . . . . . . . . . . . . Retrieved Matter . | . . . . . . . . . . . . . . . . . . Parts Self-Destructed . | . . . . . . . . . . . . . . . . . . Prevented . | . . . . . . . . . . . . . . . . . . Kills | -11 -10 -10 -10 -9 -8 -7 -7 -6 -5 -5 -4 -4 -4 -4 -3 -3 -3 ------- Run | Scr Mat Min Exi Min Mat Fac DSF Fac Fac Gar Fac Gar Fac Gar Res Gar Res Combat Hostiles Destroyed 23 | . . 2 . 5 6 . 6 . . . . . . . . . 4 Guns 19 | . . 2 . 5 6 . 6 . . . . . . . . . . AOE 2 | . . . . . . . . . . . . . . . . . 2 Classes Destroyed 8 | . . 1 . 2 1 . 2 . 1 . . . . . . . 1 Tunneler 1 | . . . . . . . . . . . . . . . . . 1 Hauler 2 | . . . . . . . . . 1 . . . . . . . 1 Recycler 3 | . . . . 1 1 . . . . . . . . . . . 1 Watcher 3 | . . . . . 1 . . . 1 . . . . . . . 1 Cutter 3 | . . . . . . . 3 . . . . . . . . . . Grunt 17 | . . 2 . 3 6 . 2 . . . . . . . . . 4 Brawler 2 | . . . . 2 . . . . . . . . . . . . . Heavy 1 | . . . . . . . 1 . . . . . . . . . . Best Kill Streak 8 | . . 1 . 4 8 . 6 . 1 . . . . . . . 6 Combat Bots Only 6 | . . 1 . 3 6 . 6 . . . . . . . . . 4 Max Kills in Single Turn 2 | . . 1 . 1 1 . 1 . 1 . . . . . . . 2 Gunslinging . | . . . . . . . . . . . . . . . . . . Exploded 2 | . . . . . . . . . . . . . . . . . 2 Melee . | . . . . . . . . . . . . . . . . . . Uniques/NPCs Destroyed . | . . . . . . . . . . . . . . . . . . Combat | -11 -10 -10 -10 -9 -8 -7 -7 -6 -5 -5 -4 -4 -4 -4 -3 -3 -3 -------- Run | Scr Mat Min Exi Min Mat Fac DSF Fac Fac Gar Fac Gar Fac Gar Res Gar Res Damage Taken 3443 | . 256 349 . . 102 . 203 97 . 71 . 62 43 151 . 1192 917 Core 1679 | . 88 80 . . 53 . . 25 . 46 . . 14 63 . 856 454 Absorbed by Shields 414 | . . . . . . . 28 . . . . 16 16 38 . 316 . Core Remaining (%) 86 | 100 . . . 32 90 . 100 97 . 95 . . . 93 . . . Volleys Fired 39 | . . 11 . . . . . 2 9 . . . . 1 . 1 15 Largest 2 | . . 2 . . . . . 1 1 . . . . 1 . 1 1 Hottest 60 | . . 60 . . . . . 53 53 . . . . 53 . 53 53 Shots Fired 156 | . . 19 . 13 37 . 29 2 9 . . . . 1 . 2 44 Gun 128 | . . 19 . 13 37 . 29 . . . . . . . . 1 29 Cannon 24 | . . . . . . . . 2 9 . . . . 1 . 1 11 Launcher 4 | . . . . . . . . . . . . . . . . . 4 Special . | . . . . . . . . . . . . . . . . . . Kinetic 144 | . . 11 . 13 37 . 29 2 9 . . . . 1 . 2 40 Thermal 8 | . . 8 . . . . . . . . . . . . . . . Explosive . | . . . . . . . . . . . . . . . . . . Electromagnetic 4 | . . . . . . . . . . . . . . . . . 4 Robot Hit Streak 16 | . . 8 . 7 16 . 16 . 4 . . . . . . 5 9 Robot Miss Streak 3 | . . 3 . 1 2 . 3 . 1 . . . . . . . 2 Penetration Max 1 | . . . . . . . 1 . . . . . . . . . . Secondary Targets . | . . . . . . . . . . . . . . . . . . Autonomous 109 | . . . . 13 37 . 29 . . . . . . . . 1 29 Shots Hit Robots 114 | . . 14 . 11 31 . 23 . 4 . . . . . . 1 30 Core Hits 45 | . . 4 . 6 9 . 9 . 3 . . . . . . 1 13 Critical Kills 3 | . . . . . 2 . 1 . . . . . . . . . . Critical Parts Destroyed . | . . . . . . . . . . . . . . . . . . Critical Strikes 3 | . . . . . 2 . 1 . . . . . . . . . . Destroy 3 | . . . . . 2 . 1 . . . . . . . . . . Melee Attacks 11 | . . . . . . . . 11 . . . . . . . . . Impact . | . . . . . . . . . . . . . . . . . . Slashing 11 | . . . . . . . . 11 . . . . . . . . . Piercing . | . . . . . . . . . . . . . . . . . . Sneak Attacks . | . . . . . . . . . . . . . . . . . . Combat Hostiles . | . . . . . . . . . . . . . . . . . . Follow-up Attacks . | . . . . . . . . . . . . . . . . . . Damage Inflicted 3831 | . . 134 . 354 965 . 685 . 125 . . . . . . 25 1543 Guns 2937 | . . 134 . 354 965 . 685 . . . . . . . . 25 774 Cannons 367 | . . . . . . . . . 125 . . . . . . . 242 Explosions 527 | . . . . . . . . . . . . . . . . . 527 Melee . | . . . . . . . . . . . . . . . . . . Ramming . | . . . . . . . . . . . . . . . . . . Kinetic 3248 | . . 78 . 354 965 . 685 . 125 . . . . . . 25 1016 Thermal 56 | . . 56 . . . . . . . . . . . . . . . Explosive . | . . . . . . . . . . . . . . . . . . Electromagnetic 527 | . . . . . . . . . . . . . . . . . 527 Impact . | . . . . . . . . . . . . . . . . . . Slashing . | . . . . . . . . . . . . . . . . . . Piercing . | . . . . . . . . . . . . . . . . . . Highest Corruption 7 | . . . . . . . . . . . . . . . . 5 7 Average Corruption 5 | . . . . . . . . . . . . . . . . 3 5 Corruption Purged . | . . . . . . . . . . . . . . . . . . Corruption Blocked . | . . . . . . . . . . . . . . . . . . Effects 6 | . . . . . . . . . . . . . . . . 1 5 Message Errors 4 | . . . . . . . . . . . . . . . . 1 3 Energy Discharges 1 | . . . . . . . . . . . . . . . . . 1 Parts Rejected 1 | . . . . . . . . . . . . . . . . . 1 Overload Shots . | . . . . . . . . . . . . . . . . . . Overflow Damage 24 | . . . . . . . . . . . . . . . . . 24 Projectiles . | . . . . . . . . . . . . . . . . . . Explosions 24 | . . . . . . . . . . . . . . . . . 24 Melee . | . . . . . . . . . . . . . . . . . . Knockbacks . | . . . . . . . . . . . . . . . . . . Impact . | . . . . . . . . . . . . . . . . . . Kinetic . | . . . . . . . . . . . . . . . . . . Secondary . | . . . . . . . . . . . . . . . . . . Self-Inflicted Damage . | . . . . . . . . . . . . . . . . . . Shots . | . . . . . . . . . . . . . . . . . . Rammed . | . . . . . . . . . . . . . . . . . . Targets Rammed . | . . . . . . . . . . . . . . . . . . Kicked . | . . . . . . . . . . . . . . . . . . Crushed . | . . . . . . . . . . . . . . . . . . Highest Temperature 323 | . . 64 . . 115 223 . 207 260 323 204 266 286 310 261 120 . Average Temperature 86 | . . 23 . . 39 91 . 84 88 138 107 76 102 129 165 38 . Received Heat Transfer 597 | . 147 195 . . 54 . 36 12 . 9 . . . 42 . 45 57 Effects 6 | . . . . . . . . . 1 5 . . . . . . . Energy Bleed 2 | . . . . . . . . . 1 1 . . . . . . . Interference 3 | . . . . . . . . . . 3 . . . . . . . Matter Decay 1 | . . . . . . . . . . 1 . . . . . . . Siege Activations . | . . . . . . . . . . . . . . . . . . Robots Corrupted 3 | . . . . . . . . . . . . . . . . . 3 Combat Hostiles 2 | . . . . . . . . . . . . . . . . . 2 Parts Fried 1 | . . . . . . . . . . . . . . . . . 1 Impact Corruptions . | . . . . . . . . . . . . . . . . . . Robots Melted . | . . . . . . . . . . . . . . . . . . Combat Hostiles . | . . . . . . . . . . . . . . . . . . Parts Melted . | . . . . . . . . . . . . . . . . . . Heat Transferred 125 | . . 125 . . . . . . . . . . . . . . . Parts Sabotaged . | . . . . . . . . . . . . . . . . . . Parts Stolen . | . . . . . . . . . . . . . . . . . . Parts Stripped . | . . . . . . . . . . . . . . . . . . Power Chain Reactions . | . . . . . . . . . . . . . . . . . . Missiles Intercepted . | . . . . . . . . . . . . . . . . . . Alert | -11 -10 -10 -10 -9 -8 -7 -7 -6 -5 -5 -4 -4 -4 -4 -3 -3 -3 ------- Run | Scr Mat Min Exi Min Mat Fac DSF Fac Fac Gar Fac Gar Fac Gar Res Gar Res Peak Influence 347 | . 29 120 . 137 347 164 284 226 205 188 112 131 88 154 101 140 312 Initial 157 | . . 10 . . 53 157 114 149 110 143 98 86 68 54 86 75 72 Average 117 | . 10 61 . 54 131 158 185 183 149 158 108 102 77 100 93 91 155 Maximum Alert Level 1 | . . . . . 1 . 1 1 1 . . . . . . . 1 Low Security (%) 87 | . 100 100 . 100 71 100 65 72 97 100 100 100 100 100 100 100 74 Level 1 12 | . . . . . 28 . 34 27 2 . . . . . . . 25 Level 2 . | . . . . . . . . . . . . . . . . . . Level 3 . | . . . . . . . . . . . . . . . . . . Level 4 . | . . . . . . . . . . . . . . . . . . Level 5 . | . . . . . . . . . . . . . . . . . . High Security . | . . . . . . . . . . . . . . . . . . Max Security . | . . . . . . . . . . . . . . . . . . Squads Dispatched 12 | . 2 . . . 1 . 3 1 1 . . . 1 . . . 3 Investigation 4 | . 2 . . . . . . 1 . . . . 1 . . . . Extermination 1 | . . . . . . . . . . . . . . . . . 1 Reinforcement 7 | . . . . . 1 . 3 . 1 . . . . . . . 2 Assault . | . . . . . . . . . . . . . . . . . . Garrison . | . . . . . . . . . . . . . . . . . . Intercept . | . . . . . . . . . . . . . . . . . . Searches Triggered . | . . . . . . . . . . . . . . . . . . Construction Impeded . | . . . . . . . . . . . . . . . . . . Haulers Reinforced 1 | . . . . . . . . . . . . . . . . . 1 Active Scanning Responses . | . . . . . . . . . . . . . . . . . . Cargo Convoy Interrupts . | . . . . . . . . . . . . . . . . . . Stealth | -11 -10 -10 -10 -9 -8 -7 -7 -6 -5 -5 -4 -4 -4 -4 -3 -3 -3 --------- Run | Scr Mat Min Exi Min Mat Fac DSF Fac Fac Gar Fac Gar Fac Gar Res Gar Res Distress Signals 5 | . 1 . . . 1 . . . 1 . . . . . . . 2 Communications Jammed . | . . . . . . . . . . . . . . . . . . Distress Signals . | . . . . . . . . . . . . . . . . . . Times Spotted 95 | . 9 8 . 4 10 . 10 5 2 2 . 10 2 4 . 14 15 Peak Tracking Total 15 | . 9 4 . 3 7 . 3 3 4 3 . 12 2 4 . 15 7 Tactical Retreats 16 | . . 3 . . 1 . 2 2 . . . . . 1 . 2 5 Traps | -11 -10 -10 -10 -9 -8 -7 -7 -6 -5 -5 -4 -4 -4 -4 -3 -3 -3 ------- Run | Scr Mat Min Exi Min Mat Fac DSF Fac Fac Gar Fac Gar Fac Gar Res Gar Res Traps Triggered 15 | . . . . . . . 1 1 . 1 . 1 1 3 . 6 1 Indirectly . | . . . . . . . . . . . . . . . . . . Trap Hack Attempts . | . . . . . . . . . . . . . . . . . . Triggered . | . . . . . . . . . . . . . . . . . . Disarmed . | . . . . . . . . . . . . . . . . . . Reprogrammed . | . . . . . . . . . . . . . . . . . . Reused . | . . . . . . . . . . . . . . . . . . Traps Extracted . | . . . . . . . . . . . . . . . . . . Installed 1 | . . . . . . . 1 . . . . . . . . . . Triggered . | . . . . . . . . . . . . . . . . . . Most Traps Carried 1 | . . . . . . . 1 . . . . . . . . . . Machines | -11 -10 -10 -10 -9 -8 -7 -7 -6 -5 -5 -4 -4 -4 -4 -3 -3 -3 ---------- Run | Scr Mat Min Exi Min Mat Fac DSF Fac Fac Gar Fac Gar Fac Gar Res Gar Res Machines Disabled 6 | . . . . . 3 . . . . . . . . 1 . 1 1 Max in Single Turn 1 | . . . . . 1 . . . . . . . . 1 . 1 1 Garrison Relay 2 | . . . . . . . . . . . . . . 1 . 1 . Machines Sabotaged . | . . . . . . . . . . . . . . . . . . Garrisons Compromised . | . . . . . . . . . . . . . . . . . . Overloaded Fab Kills . | . . . . . . . . . . . . . . . . . . Hacking | -11 -10 -10 -10 -9 -8 -7 -7 -6 -5 -5 -4 -4 -4 -4 -3 -3 -3 --------- Run | Scr Mat Min Exi Min Mat Fac DSF Fac Fac Gar Fac Gar Fac Gar Res Gar Res Machines Accessed 25 | . 4 . 1 . 2 3 . 4 4 . 3 . 2 . 1 . 1 Terminals 17 | . 4 . . . 2 2 . 4 2 . 1 . 1 . . . 1 Fabricators 3 | . . . . . . 1 . . 1 . 1 . . . . . . Repair Stations . | . . . . . . . . . . . . . . . . . . Recycling Units . | . . . . . . . . . . . . . . . . . . Scanalyzers . | . . . . . . . . . . . . . . . . . . Garrison Access 4 | . . . . . . . . . 1 . 1 . 1 . 1 . . Total Hacks 56 | . 10 . 1 . 8 8 . 10 6 . 7 . 4 . 1 . 1 Successful 22 | . 3 . 1 . 4 3 . 1 3 . 3 . 2 . 1 . 1 Failed 34 | . 7 . . . 4 5 . 9 3 . 4 . 2 . . . . Catastrophic 5 | . . . . . 1 1 . 2 1 . . . . . . . . Database Lockouts . | . . . . . . . . . . . . . . . . . . Manual 27 | . 7 . 1 . 8 . . 4 3 . 2 . 2 . . . . Terminals 41 | . 10 . . . 8 5 . 10 4 . 2 . 1 . . . 1 Fabricators 6 | . . . . . . 3 . . 1 . 2 . . . . . . Repair Stations . | . . . . . . . . . . . . . . . . . . Recycling Units . | . . . . . . . . . . . . . . . . . . Scanalyzers . | . . . . . . . . . . . . . . . . . . Garrison Access 8 | . . . . . . . . . 1 . 3 . 3 . 1 . . Terminal Hacks 12 | . 3 . 1 . 2 2 . 1 1 . . . 1 . . . 1 Record 1 | . . . . . . . . . 1 . . . . . . . . Part Schematic 2 | . . . . . 2 . . . . . . . . . . . . Robot Analysis 1 | . 1 . . . . . . . . . . . . . . . . Prototype ID Bank 1 | . 1 . . . . . . . . . . . . . . . . Open DSF 4 | . . . . . . 1 . 1 . . . . 1 . . . 1 Branch Access Points 2 | . 1 . . . . 1 . . . . . . . . . . . EX-Prototype ID Bank 1 | . . . 1 . . . . . . . . . . . . . . Fabricator Hacks 3 | . . . . . . 1 . . 1 . 1 . . . . . . Network Status 3 | . . . . . . 1 . . 1 . 1 . . . . . . Repair Station Hacks . | . . . . . . . . . . . . . . . . . . Recycling Unit Hacks . | . . . . . . . . . . . . . . . . . . Scanalyzer . | . . . . . . . . . . . . . . . . . . Garrison Access Hacks 4 | . . . . . . . . . 1 . 1 . 1 . 1 . . Unlock Access 4 | . . . . . . . . . 1 . 1 . 1 . 1 . . Unauthorized Hacks 3 | . . . . . 2 . . . . . 1 . . . . . . Terminals 3 | . . . . . 2 . . . . . 1 . . . . . . Botnet 3 | . . . . . 2 . . . . . 1 . . . . . . Fabricators . | . . . . . . . . . . . . . . . . . . Repair Stations . | . . . . . . . . . . . . . . . . . . Recycling Units . | . . . . . . . . . . . . . . . . . . Scanalyzers . | . . . . . . . . . . . . . . . . . . Garrison Access . | . . . . . . . . . . . . . . . . . . Data Cores Recovered . | . . . . . . . . . . . . . . . . . . Used . | . . . . . . . . . . . . . . . . . . Hacking Detections 17 | . 3 . . . 2 2 . 4 2 . 2 . 1 . 1 . . Full Trace Events 4 | . 2 . . . . . . 1 . . . . 1 . . . . Feedback Events . | . . . . . . . . . . . . . . . . . . Feedback Blocked . | . . . . . . . . . . . . . . . . . . Robot Schematics Acquired . | . . . . . . . . . . . . . . . . . . Robots Built . | . . . . . . . . . . . . . . . . . . Authchips . | . . . . . . . . . . . . . . . . . . Time . | . . . . . . . . . . . . . . . . . . Total Robot Build Rating . | . . . . . . . . . . . . . . . . . . Part Schematics Acquired 2 | . . . . . 2 . . . . . . . . . . . . Parts Built . | . . . . . . . . . . . . . . . . . . Authchips . | . . . . . . . . . . . . . . . . . . Time . | . . . . . . . . . . . . . . . . . . Total Part Build Rating . | . . . . . . . . . . . . . . . . . . Parts Repaired . | . . . . . . . . . . . . . . . . . . Time . | . . . . . . . . . . . . . . . . . . Parts Recycled . | . . . . . . . . . . . . . . . . . . Recycled Matter . | . . . . . . . . . . . . . . . . . . Retrieved Matter . | . . . . . . . . . . . . . . . . . . Retrieved Components . | . . . . . . . . . . . . . . . . . . Parts Scanalyzed . | . . . . . . . . . . . . . . . . . . Part Schematics Acquired . | . . . . . . . . . . . . . . . . . . Parts Damaged . | . . . . . . . . . . . . . . . . . . Bothacking | -11 -10 -10 -10 -9 -8 -7 -7 -6 -5 -5 -4 -4 -4 -4 -3 -3 -3 ------------ Run | Scr Mat Min Exi Min Mat Fac DSF Fac Fac Gar Fac Gar Fac Gar Res Gar Res Used RIF Installer 2 | . . . . . . . . . . . . 1 . . . 1 . Alert ID Control 1 | . . . . . . . . . . . . . . . . 1 . Robots Hacked . | . . . . . . . . . . . . . . . . . . Non-combat . | . . . . . . . . . . . . . . . . . . Combat . | . . . . . . . . . . . . . . . . . . Robot Hacks Applied . | . . . . . . . . . . . . . . . . . . Relay Couplers Released 9 | . . . . . . . . . . . . . . 5 . 4 . Machine Destruction 9 | . . . . . . . . . . . . . . 5 . 4 . Attached 3 | . . . . . . . . . . . . . . 1 . 2 . Fabnet Peak Effective % . | . . . . . . . . . . . . . . . . . . Robots Rewired . | . . . . . . . . . . . . . . . . . . Allies Hacked . | . . . . . . . . . . . . . . . . . . Hacks Repelled . | . . . . . . . . . . . . . . . . . . Allies | -11 -10 -10 -10 -9 -8 -7 -7 -6 -5 -5 -4 -4 -4 -4 -3 -3 -3 -------- Run | Scr Mat Min Exi Min Mat Fac DSF Fac Fac Gar Fac Gar Fac Gar Res Gar Res Total Allies . | . . . . . . . . . . . . . . . . . . Largest Group . | . . . . . . . . . . . . . . . . . . Highest-Rated Group . | . . . . . . . . . . . . . . . . . . Highest-Rated Ally . | . . . . . . . . . . . . . . . . . . Total Orders 2 | . . . . . . . . 2 . . . . . . . . . STAY 1 | . . . . . . . . 1 . . . . . . . . . EXPLORE 1 | . . . . . . . . 1 . . . . . . . . . Ally Attacks . | . . . . . . . . . . . . . . . . . . Total Damage . | . . . . . . . . . . . . . . . . . . Kills . | . . . . . . . . . . . . . . . . . . Allies Corrupted . | . . . . . . . . . . . . . . . . . . Allies Melted . | . . . . . . . . . . . . . . . . . . Intel | -11 -10 -10 -10 -9 -8 -7 -7 -6 -5 -5 -4 -4 -4 -4 -3 -3 -3 ------- Run | Scr Mat Min Exi Min Mat Fac DSF Fac Fac Gar Fac Gar Fac Gar Res Gar Res Robot Analysis Total 1 | . 1 . . . . . . . . . . . . . . . . Derelict Logs Recovered 1 | . . 1 . . . . . . . . . . . . . . . Drone Launches 2 | . . . . . . . . 2 . . . . . . . . . Drone Recoveries . | . . . . . . . . . . . . . . . . . . Exploration | -11 -10 -10 -10 -9 -8 -7 -7 -6 -5 -5 -4 -4 -4 -4 -3 -3 -3 ------------- Run | Scr Mat Min Exi Min Mat Fac DSF Fac Fac Gar Fac Gar Fac Gar Res Gar Res Turns Passed 2731 | . 101 300 364 247 281 53 89 241 161 69 37 23 57 87 21 172 428 Spaces Moved 4468 | 1 85 197 225 155 462 203 301 709 356 166 177 106 204 183 107 169 662 Core 450 | . . . . . . . . . . . . . . . . 12 438 Treads 484 | . . 58 225 155 46 . . . . . . . . . . . . Legs 225 | 1 85 139 . . . . . . . . . . . . . . . Wheels . | . . . . . . . . . . . . . . . . . . Hover 38 | . . . . . 38 . . . . . . . . . . . . Flight 3271 | . . . . . 378 203 301 709 356 166 177 106 204 183 107 157 224 Fastest Speed 10 | 120 120 120 160 160 20 17 17 17 10 10 10 10 10 14 14 11 42 Average Speed 42 | 120 120 131 160 160 41 17 17 17 16 11 16 12 13 14 14 18 49 Slowest Speed 595 | 120 120 160 160 160 595 17 17 17 17 17 17 17 14 14 14 50 150 Overloaded Moves . | . . . . . . . . . . . . . . . . . . Propulsion Burnouts . | . . . . . . . . . . . . . . . . . . Robots Hopped 20 | . . . . . 1 . 1 3 1 1 . . . 2 . 2 9 Cave-ins Triggered . | . . . . . . . . . . . . . . . . . . Exploration Rate (%) 30 | 2 30 48 61 47 33 7 96 26 11 38 8 35 7 37 5 32 23 Regions Visited 17 Branch Regions 3 Pre-discovered Areas . | . . . . . . . . . . . . . . . . . . Known Exits Taken 7 | . 1 . . . 1 1 . . 1 . 1 . 1 . 1 . . Unknown Exits Taken 5 | 1 . 1 1 1 . . . 1 . . . . . . . . . Scrap Searched 3 | . . 2 . 1 . . . . . . . . . . . . . Spaces Dug 4 | . . . . . . . . 1 3 . . . . . . . . Terrain Destroyed 31 | . . . . 4 18 . 1 1 3 . . . . . . . 4 Melee . | . . . . . . . . . . . . . . . . . . Projectile 31 | . . . . 4 18 . 1 1 3 . . . . . . . 4 AOE . | . . . . . . . . . . . . . . . . . . Terrain Rammed . | . . . . . . . . . . . . . . . . . . Walls Destroyed . | . . . . . . . . . . . . . . . . . . Machines Disabled . | . . . . . . . . . . . . . . . . . . Actions | -11 -10 -10 -10 -9 -8 -7 -7 -6 -5 -5 -4 -4 -4 -4 -3 -3 -3 --------- Run | Scr Mat Min Exi Min Mat Fac DSF Fac Fac Gar Fac Gar Fac Gar Res Gar Res Total 5179 | . 84 219 230 154 548 220 337 802 449 213 184 114 233 239 112 306 735 Wait 461 | . . 9 . . 49 13 21 62 81 31 7 6 14 30 6 95 37 Move 4413 | . 84 196 224 154 459 202 298 702 354 163 176 105 204 177 106 164 645 Hop 19 | . . . . . 1 . 1 3 1 1 . . . 2 . 2 8 Pick Up 16 | . . . 2 . 6 1 2 1 1 . . . . . . . 3 Fast Attach 39 | . . . 1 . 16 1 . 4 . . . . 2 1 . 2 12 Attach 16 | . . 1 . . . 2 . 2 2 . . . 1 1 . 1 6 Detach 13 | . . . . . . . . 1 . . . . 2 1 . 3 6 Swap 2 | . . 2 . . . . . . . . . . . . . . . Drop 31 | . . . 3 . 17 1 1 4 1 . . . 1 . . . 3 Fire 39 | . . 11 . . . . . 2 9 . . . . 1 . 1 15 Melee 11 | . . . . . . . . 11 . . . . . . . . . Ram . | . . . . . . . . . . . . . . . . . . Kick . | . . . . . . . . . . . . . . . . . . Crush . | . . . . . . . . . . . . . . . . . . Escape Stasis 118 | . . . . . . . 13 10 . 18 1 3 9 26 . 38 . Rewire . | . . . . . . . . . . . . . . . . . . Trap 1 | . . . . . . . 1 . . . . . . . . . . Miscellaneous . | . . . . . . . . . . . . . . . . . . Route ------- -11/Scrapyard -10/Materials (discovered 2 exits: *Min x2) -10/Mines (discovered 2 exits: [*Mat] / *Exi) -10/Exiles -9/Mines -8/Materials (discovered 3 exits: *Fac x3) -7/Factory (discovered 4 exits: Sto / Low x2 / DSF) -7/DSF -6/Factory -5/Factory -5/Garrison -4/Factory -4/Garrison -4/Factory -4/Garrison -3/Research -3/Garrison -3/Research (discovered 1 exit: *Tes) History --------- Turn | Location | Event 1 | -11/Scrapyard | Discovered new exit (range 0) 1 | -11/Scrapyard | Entered Materials 85 | -10/Materials | Identified exit to Mines 102 | -10/Materials | Entered Mines 123 | -10/Mines | Discovered new exit (range 11) 280 | -10/Mines | Core integrity fell below 50% 312 | -10/Mines | Build established: Mutant 371 | -10/Mines | Learned 4 Materials zone layouts 395 | -10/Mines | Deemed a non-threat by the Exiles lab entrance 395 | -10/Mines | Discovered new exit (range 5) 402 | -10/Mines | Entered Exiles 444 | -10/Exiles | Met 8R-AWN 470 | -10/Exiles | Met EX-HEX 516 | -10/Exiles | Met EX-BIN 534 | -10/Exiles | Aligned with FarCom system 536 | -10/Exiles | Given EX-Vault access code 572 | -10/Exiles | Opened EX-Vault 584 | -10/Exiles | Found AWS/Gauss 627 | -10/Exiles | Warned to stay clear of 0b10 Research branches 671 | -10/Exiles | Met EX-DEC 753 | -10/Exiles | Discovered new exit (range 10) 766 | -10/Exiles | Left Exiles lab with AWS/Gauss 766 | -10/Exiles | Entered Mines 997 | -9/Mines | Discovered new exit (range 11) 1013 | -9/Mines | Entered Materials 1013 | -8/Materials | Evolved 4 slots: Propulsion x4 1014 | -8/Materials | Identified exit to Factory 1276 | -8/Materials | Discovered exit to Factory (range 11) 1294 | -8/Materials | Entered Factory 1294 | -7/Factory | Evolved 2 slots: Power x1, Propulsion x1 1337 | -7/Factory | Identified exit to Storage 1337 | -7/Factory | Identified exit to Lower Caves 1347 | -7/Factory | Identified exit to DSF 1347 | -7/Factory | Entered DSF 1368 | -7/DSF | Additional patrols routed to DSF 1388 | -7/DSF | Discovered new exit (range 15) 1397 | -7/DSF | Build established: Sprinter 1436 | -7/DSF | Entered Factory 1436 | -6/Factory | Evolved 2 slots: Propulsion x1, Utility x1 1582 | -6/Factory | Spotted B-75 Beast 1603 | -6/Factory | Discovered new exit (range 13) 1677 | -6/Factory | Entered another Factory area 1677 | -5/Factory | Evolved 2 slots: Propulsion x2 1838 | -5/Factory | Identified exit to Garrison 1838 | -5/Factory | Entered Garrison 1871 | -5/Garrison | Spotted B-75 Beast 1883 | -5/Garrison | Discovered new exit (range 12) 1888 | -5/Garrison | Triggered checkpoint 1907 | -5/Garrison | Entered Factory 1907 | -4/Factory | Evolved 2 slots: Power x1, Utility x1 1944 | -4/Factory | Identified exit to Garrison 1944 | -4/Factory | Entered Garrison 1945 | -4/Garrison | Installed Relay Interface Framework 1955 | -4/Garrison | Spotted B-86 Titan 1959 | -4/Garrison | Triggered checkpoint 1966 | -4/Garrison | Discovered new exit (range 14) 1967 | -4/Garrison | Entered Factory 2024 | -4/Factory | Identified exit to Garrison 2024 | -4/Factory | Entered Garrison 2030 | -4/Garrison | Triggered checkpoint 2041 | -4/Garrison | Spotted B-86 Titan 2042 | -4/Garrison | Triggered checkpoint 2066 | -4/Garrison | Discovered new exit (range 14) 2072 | -4/Garrison | Garrison Relay disabled 2081 | -4/Garrison | Identified exit to Research 2111 | -4/Garrison | Entered Research 2111 | -3/Research | Evolved 2 slots: Utility x2 2118 | -3/Research | Identified exit to Garrison 2132 | -3/Research | Entered Garrison 2133 | -3/Garrison | Expanded RIF knowledge: Alert ID Control 2232 | -3/Garrison | Triggered checkpoint 2235 | -3/Garrison | Garrison Relay disabled 2254 | -3/Garrison | Spotted B-86 Titan 2260 | -3/Garrison | Triggered checkpoint 2262 | -3/Garrison | Triggered checkpoint 2295 | -3/Garrison | Core integrity fell below 50% 2300 | -3/Garrison | Discovered new exit (range 8) 2303 | -3/Garrison | Identified exit to Research 2304 | -3/Garrison | Entered Research 2320 | -3/Research | Lost 13 parts (1p9n3u) 2356 | -3/Research | Found Prototype Processor 2356 | -3/Research | Identified Spectral Analyzer 2547 | -3/Research | Discovered new exit (range 12) 2555 | -3/Research | Identified exit to Testing 2572 | -3/Research | Core integrity fell below 20% 2602 | -3/Research | Lost 3 parts (3u) 2642 | -3/Research | Found Prototype Device 2642 | -3/Research | Identified Exp. Thermal Shield 2732 | -3/Research | Destroyed by P-80 Master with Gamma Rifle Last Messages --------------- 02683_ Slug penetrates Wall. 02695_ Connecting with DSF Access... 02704_ Acquired Adv. Hacking Suite. 02707_ JLE4RIP6&O2O2#3AXMTNSJART=MJ 02711_ Acquired Imp. Utility Shielding. 02718_ Slug penetrates P-80 Master. 02720_ Acquired Imp. Recalibrator. 02722_ Slug penetrates Wall. 02723_ System corrupted: Impulse Thruster Array rejected. 02723_ Slug penetrates P-80 Master. 02723_ Slug penetrates Wall. 02724_ Slug penetrates P-80 Master. 02724_ Destroyed Sml. Battery. 02724_ Slug penetrates Wall. 02725_ Acquired Impulse Thruster Array. 02727_ Slug penetrates P-80 Master. 02727_ Destroyed Gamma Rifle. 02727_ Slug penetrates Wall. 02730_ Slug penetrates P-80 Master. 02730_ Destroyed Imp. Antigrav System. Map ----- +----------------------------------------------------+ | ???????# ##+###???????? #??? ! ??# #??? | | #### ########? ????? ?# #??? | | / / = ?????? ?# #??? | | #### #???????? # #### | | ???????# ?????????" """ # # | | ???????### """ """ ?????????" """ + # | | ?????????# """ """?????????????" """ # # | | ?????????# """ """ ???????????" """ # + | | ??###????# ??????????" """ ?# # | | ??#! ??# ??????????? ?# # | | ??# # ??????????? ??# # | | ??# + ###### ?????????? ??# | | ??# ! # ##+####????# ??????????#####???# | | ??# ??" #??????????+ ??????????????????# | | ?# ????# #??????????# ??????????????????# | | ######## #??????????# ??????????????????# | | #??????????# ??????????????????# | | #??????????# #?????????????????# | | #??????????# #?????????????????# | | """ #??????????# #?????????????????# | | """ #??????????# #????Y????????????# | | """ #??????????# #?????????????????# | | """ ##+############ #?????????????????# | | """ # + #?????????????????# | | + ! g #u #?????????????????# | | # g # @#????#????????????# | | # b # #?? #????????????+ | | + ""T"" # # #????????????# | | ### """"" # ; #????????????? | | #?############??# # #??????????????? # | | #????############ #?? #????????????? ??? | | #?? ## # #########??######## ??? | | # ## ; pp# #??# ??? | | + ## + + #??# ??? | | # [ ## # # #??# # | | ##?? ## # # #??# | | #?????##### ; #* #??# #??????? | | #?????????####+### #########??# #??????? | | ####+####??????# + ############ #??????? | | ?# #??????#! # ## #??????? | | ?# #??????# # ## #??????? | | ?# !#??????# !!| # ## ######## | | ?# #??????# !! # ## | | ?# ###?#### !| [ # #####+######+########### | | ?# + ###T ######## # # #??? | | ?######## # # #??? | | ???????## ###### # """"" #??? | | ???????# #????# !# ""T"" #??? | | ???????# +????# # #??? | | ???????# #####????# # #??? | +----------------------------------------------------+ Best States ------------- Heat Dissipation 56 Energy Generation 44 Energy Capacity 430 Matter Stores 300 Matter Capacity 300 Sight Range 24 Terrain Scan Density 10 Additional Mass Support 9 Armor Coverage 450 Resistance: TH 30 Utility Shielding 66 Evasion (%) 76 Recoil Reduction 2 Offensive Hacking 14 Relay Coupler Types 2 Relay Coupler Value 87 Item Schematics ----------------- VTOL Module | -8/Materials | Hacked Structural Scanner | -8/Materials | Hacked Robot Schematics ------------------ None Fabricated ------------ Nothing Alien Tech Used ----------------- None Achievements -------------- Speed Demon Challenges ------------ None Game ------ Seed ImpactEfficiencyWeb Manual? 0 Play Time 01:01:31 Cumulative 123.3 hours Start 2022.11.13 @ 21:27:49 End 2022.11.14 @ 12:26:20 Sessions 3 Manual Loads 0 Difficulty Rogue Special Mode None Game No. 131 Rogue 131 Adventurer 0 Explorer 0 Win Type - Total 0 Types 0/0/0/0/0/0/0/0/0 Lore% 53 Gallery% 67 Achievement% 53 Wizard Run 0 Options --------- ASCII 0 Keyboard 0 Movement Numpad Keybinds 0 Fullscreen 1 Font 18/SmallcapsGlow Map View 76x50 Tactical HUD 1 Map Filters NONE Filters NONE Steam 1 RUN: c70fce21-0259-40af-860b-a8c1ccdf8ad2